bitfinex-derivatives/quotes_ETHF0:USTF0_20260128
["timestamp","ask_amount","ask_price","bid_price","bid_amount"]
[1769564122971,3.37363338,3015.3,3013.9,0.77988365]
[1769564123166,3.37363338,3015.2,3013.9,0.77988365]
[1769564123366,0.16603,3015.5,3013.9,0.77988365]
[1769564123567,3.3736617,3015.4,3013.9,0.77988365]
[1769564123769,3.3736617,3015.3,3013.9,0.77988365]
[1769564124069,3.3736617,3015.2,3013.9,0.77988365]
[1769564124269,3.3736617,3015.1,3013.9,0.77988365]
[1769564124466,0.16603,3015.5,3013.9,0.77988365]
[1769564124670,3.37364137,3015.4,3013.9,0.77988365]
[1769564124872,3.37364137,3015.3,3013.9,0.77988365]
[1769564125070,3.37364137,3015.2,3013.9,0.77988365]
[1769564125271,3.37364137,3015.1,3013.9,0.77988365]
[1769564125469,0.16603,3015.5,3013.9,0.77988365]
[1769564125673,3.37362639,3015.4,3013.9,0.77988365]
[1769564125871,3.37362639,3015.3,3013.9,0.77988365]
[1769564126072,3.37362639,3015.2,3013.9,0.77988365]
[1769564126276,3.37362639,3015.1,3013.9,0.77988365]
[1769564126468,0.16603,3015.5,3013.9,0.77988365]
[1769564126668,3.37362082,3015.4,3013.9,0.77988365]
[1769564126968,3.37362082,3015.3,3013.9,0.77988365]
[1769564127161,3.37362082,3015.2,3013.9,0.77988365]
[1769564127361,0.16603,3015.5,3013.9,0.77988365]
[1769564127576,3.37362509,3015.4,3013.9,0.77988365]
[1769564127772,0.00375134,3015.6,3014.1,0.77523463]
[1769564128670,3.321,3016.3,3014.5,0.7754737]
[1769564128875,3.37408295,3016.2,3014.7,0.7754737]
[1769564129170,3.321,3016.3,3014.7,0.7754737]
[1769564129578,4.93799931,3016.3,3014.7,0.7754737]
[1769564129873,4.94114711,3016.3,3014.7,0.7754737]
[1769564131177,5.10713711,3016.3,3014.7,0.7754737]
[1769564132778,2.656,3016.2,3014.7,0.7754737]
[1769564133278,2.82199,3016.2,3014.7,0.7754737]
[1769564133579,3.3652902,3016.1,3014.7,0.7754737]
[1769564133880,3.3652902,3016.0,3014.7,0.7754737]
[1769564134078,3.3652902,3015.9,3014.7,0.7754737]
[1769564134270,0.0031478,3016.3,3014.7,0.7754737]
[1769564135376,1.948,3016.2,3014.7,0.7754737]
[1769564136971,0.0031478,3016.3,3014.7,0.7754737]
[1769564137177,0.0031478,3016.3,3014.7,0.9415437]
[1769564137673,0.0031478,3016.3,3014.9,0.77653075]
[1769564140784,1.61590005,3016.1,3014.9,0.77653075]
[1769564142281,1.61590005,3015.8,3014.9,0.77653075]
[1769564143784,1.947,3015.7,3014.4,0.78077487]
[1769564151791,1.61590005,3015.5,3014.4,0.78077487]
[1769564160591,1.78193005,3015.5,3014.4,0.78077487]
[1769564160993,1.61590005,3015.2,3014.4,0.78077487]
[1769564170809,1.61590005,3014.9,3013.8,0.79215551]
[1769564177121,1.61590005,3015.5,3014.0,0.79397081]
[1769564177418,5.35163023,3015.4,3014.0,0.79397081]
[1769564177613,3.40363023,3015.3,3014.0,0.79397081]
[1769564180130,1.61590005,3015.2,3014.0,0.79397081]
[1769564184023,3.40487331,3015.1,3014.0,0.79397081]
[1769564184225,1.61590005,3015.2,3014.0,0.79397081]
[1769564184427,3.40511432,3015.1,3014.0,0.79397081]
[1769564184630,1.61590005,3015.2,3014.0,0.79397081]
[1769564184923,3.40471942,3015.1,3014.0,0.79397081]
[1769564185123,1.61590005,3015.2,3014.0,0.79397081]
[1769564185429,1.948,3015.4,3013.4,0.79805115]
[1769564185430,1.61590005,3014.9,3013.4,0.79805115]
[1769564186522,3.40495808,3014.8,3013.4,0.79805115]
[1769564186724,1.61590005,3014.9,3013.4,0.79805115]
[1769564187017,3.40494786,3014.8,3013.4,0.79805115]
[1769564187224,1.61590005,3014.9,3013.4,0.79805115]
[1769564187424,3.40505826,3014.8,3013.4,0.79805115]
[1769564187624,1.61590005,3014.9,3013.4,0.79805115]
[1769564187826,1.88729275,3014.7,3013.4,0.79805115]
[1769564197521,0.16606,3014.9,3013.4,0.79805115]
[1769564198228,0.16606,3014.9,3013.5,0.77977797]
[1769564200338,0.16607,3014.8,3013.5,0.77977797]
[1769564201240,1.8872069,3014.5,3013.3,0.00235359]
[1769564201536,2.0533169,3014.1,3012.6,0.77833081]
[1769564202530,2.05606497,3014.1,3012.6,0.78189383]
[1769564211140,0.16885807,3014.1,3012.6,0.78189383]
[1769564221653,0.16612,3013.9,3012.6,0.78189383]
[1769564221945,0.16614,3013.5,3012.4,0.77818139]
[1769564222152,0.16614,3013.4,3011.8,0.77818139]
[1769564222844,0.16614,3013.4,3011.8,0.78058184]
[1769564223047,0.16611,3014.0,3011.8,0.94681184]
[1769564223249,3.39498815,3013.9,3012.0,0.77829704]
[1769564223551,2.11511,3014.0,3012.1,0.77807812]
[1769564223552,0.16611,3014.0,3012.1,0.77807812]
[1769564224144,0.16611,3014.0,3012.2,0.77819226]
[1769564227339,0.16611,3014.0,3012.3,0.78154294]
[1769564230347,0.16611,3014.0,3012.4,0.78201703]
[1769564231352,0.16611,3014.0,3012.5,0.78223985]
[1769564233551,3.40925676,3013.9,3012.5,0.78223985]
[1769564233760,0.16611,3014.0,3012.5,0.78223985]
[1769564233949,3.40925971,3013.9,3012.5,0.78223985]
[1769564234150,0.16611,3014.0,3012.5,0.78223985]
[1769564234350,3.40925362,3013.9,3012.5,0.78223985]
[1769564234550,0.16611,3014.0,3012.5,0.78223985]
[1769564234759,3.40925339,3013.9,3012.5,0.78223985]
[1769564235057,0.16611,3014.0,3012.5,0.78223985]
[1769564235357,3.40916751,3013.9,3012.5,0.78223985]
[1769564235655,0.16611,3014.0,3012.5,0.78223985]
[1769564235961,3.40925076,3013.9,3012.5,0.78223985]
[1769564236158,0.16611,3014.0,3012.5,0.78223985]
[1769564236459,3.40924221,3013.9,3012.5,0.78223985]
[1769564236652,0.16611,3014.0,3012.5,0.78223985]
[1769564236852,3.40924502,3013.9,3012.5,0.78223985]
[1769564237054,0.16611,3014.0,3012.5,0.78223985]
[1769564237254,3.40924502,3013.9,3012.5,0.78223985]
[1769564237460,0.16611,3014.0,3012.5,0.78223985]
[1769564237656,3.43227487,3013.9,3012.5,0.78223985]
[1769564237857,0.16611,3014.0,3012.5,0.78223985]
[1769564238054,3.43227425,3013.9,3012.5,0.78223985]
[1769564238254,0.16611,3014.0,3012.5,0.78223985]
[1769564238455,3.43227054,3013.9,3012.5,0.78223985]
[1769564238663,0.16611,3014.0,3012.5,0.78223985]
[1769564238962,3.43176095,3013.9,3012.5,0.78223985]
[1769564239165,0.16611,3014.0,3012.5,0.78223985]
[1769564239354,3.43175745,3013.9,3012.5,0.78223985]
[1769564239554,0.16611,3014.0,3012.5,0.78223985]
[1769564239761,3.4317491,3013.9,3012.5,0.78223985]
[1769564239963,0.16611,3014.0,3012.5,0.78223985]
[1769564240166,3.43173014,3013.9,3012.5,0.78223985]
[1769564240458,0.16611,3014.0,3012.5,0.78223985]
[1769564240651,3.4317057,3013.9,3012.5,0.78223985]
[1769564240854,0.16611,3014.0,3012.5,0.78223985]
[1769564241054,3.43179797,3013.9,3012.5,0.78223985]
[1769564241257,0.16611,3014.0,3012.5,0.78223985]
[1769564241450,3.43185408,3013.9,3012.5,0.78223985]
[1769564241655,0.16611,3014.0,3012.5,0.78223985]
[1769564241864,3.43185191,3013.9,3012.5,0.78223985]
[1769564242063,0.16611,3014.0,3012.5,0.78223985]
[1769564242266,3.4317728,3013.9,3012.5,0.78223985]
[1769564242463,0.16611,3014.0,3012.5,0.78223985]
[1769564242663,3.43185945,3013.9,3012.5,0.78223985]
[1769564242866,0.16611,3014.0,3012.5,0.78223985]
[1769564243067,3.43186066,3013.9,3012.5,0.78223985]
[1769564243267,0.16611,3014.0,3012.5,0.78223985]
[1769564243570,3.43191591,3013.9,3012.5,0.78223985]
[1769564243764,0.16611,3014.0,3012.5,0.78223985]
[1769564252378,3.43481451,3013.9,3012.5,0.78223985]
[1769564252571,0.16611,3014.0,3012.5,0.78223985]
[1769564252773,3.43482439,3013.9,3012.5,0.78223985]
[1769564252976,0.16611,3014.0,3012.5,0.78223985]
[1769564253176,3.43478102,3013.9,3012.5,0.78223985]
[1769564253377,3.43478102,3013.8,3012.6,0.78451547]
[1769564253576,0.16611,3014.0,3012.6,0.78451547]
[1769564253777,3.43718089,3013.9,3012.6,0.78451547]
[1769564254080,3.43718089,3013.8,3012.6,0.78451547]
[1769564254279,0.16611,3014.0,3012.6,0.78451547]
[1769564254483,3.43713462,3013.9,3012.6,0.78451547]
[1769564254686,3.43713462,3013.8,3012.6,0.78451547]
[1769564254878,0.16611,3014.0,3012.6,0.78451547]
[1769564255080,3.43713485,3013.9,3012.6,0.78451547]
[1769564255383,3.43713485,3013.8,3012.6,0.78451547]
[1769564255582,0.16611,3014.0,3012.6,0.78451547]
[1769564255885,3.43709077,3013.9,3012.6,0.78451547]
[1769564256074,3.43709077,3013.8,3012.6,0.78451547]
[1769564256275,0.16611,3014.0,3012.6,0.78451547]
[1769564256583,3.43699788,3013.9,3012.6,0.78451547]
[1769564256776,3.43699788,3013.8,3012.6,0.78451547]
[1769564256977,0.16611,3014.0,3012.6,0.78451547]
[1769564257276,3.43699773,3013.9,3012.6,0.78451547]
[1769564257574,3.43699773,3013.8,3012.6,0.78451547]
[1769564257774,0.16611,3014.0,3012.6,0.78451547]
[1769564257976,3.43696149,3013.9,3012.6,0.78451547]
[1769564258178,3.43696149,3013.8,3012.6,0.78451547]
[1769564258385,0.16611,3014.0,3012.6,0.78451547]
[1769564258576,3.43691238,3013.9,3012.6,0.78451547]
[1769564258783,3.43691238,3013.8,3012.6,0.78451547]
[1769564259082,0.16611,3014.0,3012.6,0.78451547]
[1769564259376,3.43691406,3013.9,3012.6,0.78451547]
[1769564259572,5.32531773,3013.8,3012.6,0.78451547]
[1769564259776,1.88840367,3013.8,3012.6,0.78451547]
[1769564263489,1.88840367,3013.5,3012.6,0.78451547]
[1769564264078,1.88840367,3013.2,3012.6,0.78451547]
[1769564267082,1.88840367,3013.5,3012.6,0.78451547]
[1769564268086,1.88840367,3013.7,3012.6,0.78451547]
[1769564268289,0.16612,3013.9,3012.6,0.78451547]
[1769564268488,3.43993255,3013.8,3012.6,0.78451547]
[1769564268789,0.16612,3013.9,3012.6,0.78451547]
[1769564268990,3.44024282,3013.8,3012.6,0.78451547]
[1769564269193,0.16612,3013.9,3012.6,0.78451547]
[1769564269387,3.44077862,3013.8,3012.6,0.78451547]
[1769564269693,0.16612,3013.9,3012.6,0.78451547]
[1769564269991,3.44077771,3013.8,3012.6,0.78451547]
[1769564270293,0.16612,3013.9,3012.6,0.78451547]
[1769564270484,3.44079359,3013.8,3012.6,0.78451547]
[1769564270684,0.16612,3013.9,3012.6,0.78451547]
[1769564270887,3.44080708,3013.8,3012.6,0.78451547]
[1769564271086,0.16612,3013.9,3012.6,0.78451547]
[1769564271389,3.44081,3013.8,3012.6,0.78451547]
[1769564271589,0.16612,3013.9,3012.6,0.78451547]
[1769564271793,3.4408142,3013.8,3012.6,0.78451547]
[1769564271984,0.16612,3013.9,3012.6,0.78451547]
[1769564272288,3.44081704,3013.8,3012.6,0.78451547]
[1769564272484,0.16612,3013.9,3012.6,0.78451547]
[1769564272684,3.44086981,3013.8,3012.6,0.78451547]
[1769564272992,0.16612,3013.9,3012.6,0.78451547]
[1769564273293,3.44111835,3013.8,3012.6,0.78451547]
[1769564273492,0.16612,3013.9,3012.6,0.78451547]
[1769564273686,3.44113552,3013.8,3012.6,0.78451547]
[1769564273879,3.44113552,3013.7,3012.6,0.78451547]
[1769564274085,3.44113552,3013.6,3012.6,0.78451547]
[1769564274394,0.16612,3013.9,3012.6,0.78451547]
[1769564274584,3.44118487,3013.8,3012.6,0.78451547]
[1769564274785,3.44118487,3013.7,3012.6,0.78451547]
[1769564275084,3.44118487,3013.6,3012.6,0.78451547]
[1769564275285,0.16612,3013.9,3012.6,0.78451547]
[1769564275498,3.44124745,3013.8,3012.6,0.78451547]
[1769564275686,3.44124745,3013.7,3012.6,0.78451547]
[1769564275987,3.44124745,3013.6,3012.6,0.78451547]
[1769564276190,0.16612,3013.9,3012.6,0.78451547]
[1769564276392,3.44128692,3013.8,3012.6,0.78451547]
[1769564276585,3.44128692,3013.7,3012.6,0.78451547]
[1769564276884,3.44128692,3013.6,3012.6,0.78451547]
[1769564277083,0.16612,3013.9,3012.6,0.78451547]
[1769564277293,3.44128831,3013.8,3012.6,0.78451547]
[1769564277494,3.44128831,3013.7,3012.6,0.78451547]
[1769564277691,3.44128831,3013.6,3012.6,0.78451547]
[1769564277892,0.16612,3013.9,3012.6,0.78451547]
[1769564278095,3.44133339,3013.8,3012.6,0.78451547]
[1769564278293,3.44133339,3013.7,3012.6,0.78451547]
[1769564278591,3.44133339,3013.6,3012.6,0.78451547]
[1769564278787,0.16612,3013.9,3012.6,0.78451547]
[1769564278987,3.44138567,3013.8,3012.6,0.78451547]
[1769564279293,3.44138567,3013.7,3012.6,0.78451547]
[1769564279497,3.44138567,3013.6,3012.6,0.78451547]
[1769564279794,0.16612,3013.9,3012.7,0.78619034]
[1769564280088,3.44144179,3013.8,3012.7,0.78619034]
[1769564280285,3.44144179,3013.7,3012.7,0.78619034]
[1769564280485,2.64474807,3014.1,3012.7,0.78619034]
[1769564280690,3.44158307,3014.0,3012.7,0.78619034]
[1769564280892,3.44158307,3013.9,3012.7,0.78619034]
[1769564281080,3.44158307,3013.8,3012.7,0.78619034]
[1769564281283,3.44158307,3013.7,3012.7,0.78619034]
[1769564281484,2.64474807,3014.1,3012.7,0.78619034]
[1769564281684,3.44147177,3014.0,3012.7,0.78619034]
[1769564281885,3.44147177,3013.9,3012.7,0.78619034]
[1769564282190,3.44147177,3013.8,3012.7,0.78619034]
[1769564282392,3.44147177,3013.7,3012.7,0.78619034]
[1769564282596,1.88840367,3013.9,3012.7,0.78619034]
[1769564282795,3.44061437,3013.8,3012.7,0.78619034]
[1769564282996,1.88840367,3013.6,3012.7,0.78619034]
[1769564283891,1.88840367,3013.3,3012.4,0.78898143]
[1769564297105,1.982,3013.8,3012.4,0.78898143]
[1769564297309,3.4321269,3013.7,3012.4,0.78898143]
[1769564297504,3.4321269,3013.6,3012.4,0.78898143]
[1769564297706,1.982,3013.8,3012.4,0.78898143]
[1769564297908,3.43199462,3013.7,3012.4,0.78898143]
[1769564298112,3.43199462,3013.6,3012.4,0.78898143]
[1769564298411,1.982,3013.8,3012.4,0.78898143]
[1769564298616,3.43186239,3013.7,3012.4,0.78898143]
[1769564298810,3.43186239,3013.6,3012.4,0.78898143]
[1769564299111,1.982,3013.8,3012.4,0.78898143]
[1769564299311,3.4317487,3013.7,3012.4,0.78898143]
[1769564299508,1.88840367,3013.9,3012.4,0.78898143]
[1769564300303,0.00274807,3014.1,3013.0,0.78468532]
[1769564301109,1.88840367,3014.8,3013.3,0.78468532]
[1769564301309,3.43325625,3014.7,3013.3,0.78468532]
[1769564301509,1.88840367,3014.8,3013.3,0.78468532]
[1769564301711,3.43136949,3014.7,3013.3,0.78468532]
[1769564301910,1.88840367,3014.8,3013.3,0.78468532]
[1769564302105,3.4313695,3014.7,3013.3,0.78468532]
[1769564302316,1.89106839,3014.8,3013.3,0.78468532]
[1769564303714,1.88840367,3014.5,3013.3,0.78468532]
[1769564319542,0.00266472,3014.8,3013.3,0.78468532]
[1769564321339,3.42393131,3014.7,3013.3,0.78468532]
[1769564321536,0.00266472,3014.8,3013.3,0.78468532]
[1769564321737,3.4240639,3014.7,3013.3,0.78468532]
[1769564321940,0.00266472,3014.8,3013.3,0.78468532]
[1769564322138,3.42426398,3014.7,3013.3,0.78468532]
[1769564322339,0.00266472,3014.8,3013.3,0.78468532]
[1769564322534,3.42494132,3014.7,3013.3,0.78468532]
[1769564322737,0.00266472,3014.8,3013.3,0.78468532]
[1769564322939,3.42494119,3014.7,3013.3,0.78468532]
[1769564323139,0.00266472,3014.8,3013.3,0.78468532]
[1769564323437,3.42560774,3014.7,3013.3,0.78468532]
[1769564323640,0.16873472,3014.8,3013.3,0.78468532]
[1769564323842,1.88759925,3014.1,3012.6,5.93591149]
[1769564324040,2.682,3014.0,3012.3,7.44755531]
[1769564324239,2.682,3014.0,3012.3,0.1662]
[1769564324737,1.948,3014.2,3012.5,0.16619]
[1769564324932,1.948,3014.3,3012.5,0.16619]
[1769564325138,3.42679187,3014.2,3012.5,0.16619]
[1769564325338,1.948,3014.3,3012.5,0.16619]
[1769564325641,3.42784511,3014.2,3012.5,0.16619]
[1769564325846,1.948,3014.3,3012.6,0.39853342]
[1769564326044,3.427843,3014.2,3012.6,0.39853342]
[1769564326244,3.42933554,3014.1,3012.6,0.39853342]
[1769564326546,1.948,3014.3,3012.6,0.39853342]
[1769564326747,3.42937179,3014.2,3012.6,0.39853342]
[1769564326949,3.42937179,3014.1,3012.6,0.39853342]
[1769564327242,1.948,3014.3,3012.6,0.39853342]
[1769564327243,0.1661,3014.2,3012.6,0.39853342]
[1769564327447,3.40852132,3014.1,3012.6,0.39853342]
[1769564327749,3.40852132,3014.0,3012.6,0.39853342]
[1769564328045,0.1661,3014.2,3012.6,0.39853342]
[1769564328348,3.40851837,3014.1,3012.6,0.39853342]
[1769564328543,3.57462837,3014.0,3012.6,0.39853342]
[1769564328752,0.16612,3013.8,3012.4,0.39524256]
[1769564329049,3.40851837,3013.7,3012.4,0.39524256]
[1769564333756,0.16612,3013.8,3012.4,0.39524256]
[1769564337259,1.949,3014.0,3012.4,0.39524256]
[1769564339060,1.949,3014.2,3012.4,0.39524256]
[1769564339560,2.1151,3014.2,3012.4,0.39524256]
[1769564341261,0.00266472,3014.8,3012.5,0.39940456]
[1769564341465,0.16608,3014.6,3012.7,0.39940456]
[1769564341656,3.57460845,3014.5,3012.7,0.39940456]
[1769564341856,3.40852845,3014.4,3012.7,0.39940456]
[1769564342456,0.1661,3014.3,3012.7,0.39940456]
[1769564343064,0.16611,3014.1,3012.7,0.39940456]
[1769564347366,0.16608,3014.6,3012.7,0.39940456]
[1769564347562,5.35936784,3014.5,3012.7,0.39940456]
[1769564347761,3.41036784,3014.4,3012.7,0.39940456]
[1769564356772,3.57645784,3014.4,3012.7,0.39940456]
[1769564357076,3.41036784,3014.3,3012.7,0.39940456]
[1769564365588,3.41036784,3014.3,3012.9,0.40376818]
[1769564376183,3.57646784,3014.3,3012.9,0.40376818]
[1769564376385,3.41036784,3014.2,3012.9,0.40376818]
[1769564377393,0.16611,3014.1,3012.6,0.40350695]
[1769564377592,3.41036784,3014.0,3012.6,0.40350695]
[1769564378491,3.57647784,3014.0,3012.6,0.40350695]
[1769564378687,3.41036784,3013.9,3012.6,0.40350695]
[1769564381584,1.88855542,3013.8,3012.6,0.40350695]
[1769564399302,1.88855542,3013.5,3012.6,0.40350695]
[1769564399502,1.88855542,3013.5,3012.4,0.40653264]
[1769564401608,1.88855542,3013.2,3012.1,0.40720295]
[1769564402295,4.71669542,3013.5,3012.1,0.40720295]
[1769564412514,1.88855542,3013.8,3012.4,0.40631178]
[1769564412706,3.4142191,3013.7,3012.4,0.40631178]
[1769564412906,4.54055542,3013.8,3012.4,0.40631178]
[1769564413110,3.41381698,3013.7,3012.4,0.40631178]
[1769564413311,4.54055542,3013.8,3012.4,0.40631178]
[1769564413609,3.413864,3013.7,3012.4,0.40631178]
[1769564413811,4.54055542,3013.8,3012.4,0.40631178]
[1769564414005,3.41386194,3013.7,3012.4,0.40631178]
[1769564414207,3.41390778,3013.6,3012.4,0.40631178]
[1769564414407,3.41390778,3013.5,3012.4,0.40631178]
[1769564414613,4.54055542,3013.8,3012.4,0.40631178]
[1769564414815,3.41393989,3013.7,3012.4,0.40631178]
[1769564415018,3.41393989,3013.6,3012.4,0.40631178]
[1769564415216,3.41393989,3013.5,3012.4,0.40631178]
[1769564415518,4.70667542,3013.8,3012.4,0.40631178]
[1769564415816,3.41399109,3013.7,3012.4,0.40631178]
[1769564416016,3.41399109,3013.6,3012.4,0.40631178]
[1769564416217,3.41399109,3013.5,3012.4,0.40631178]
[1769564416516,4.70667542,3013.8,3012.4,0.40631178]
[1769564416714,3.41347359,3013.7,3012.4,0.40631178]
[1769564416910,3.41347359,3013.6,3012.4,0.40631178]
[1769564417117,3.41347359,3013.5,3012.4,0.40631178]
[1769564417317,4.70667542,3013.8,3012.4,0.40631178]
[1769564417519,3.41270297,3013.7,3012.4,0.40631178]
[1769564417714,3.41270297,3013.6,3012.4,0.40631178]
[1769564417911,3.41270297,3013.5,3012.4,0.40631178]
[1769564418113,4.70667542,3013.8,3012.4,0.40631178]
[1769564418418,3.41700935,3013.7,3012.4,0.40631178]
[1769564418621,3.41700935,3013.6,3012.4,0.40631178]
[1769564418820,3.41700935,3013.5,3012.4,0.40631178]
[1769564419021,4.70667542,3013.8,3012.4,0.40631178]
[1769564419222,3.41708494,3013.7,3012.4,0.40631178]
[1769564419428,3.41708494,3013.6,3012.4,0.40631178]
[1769564419622,3.41708494,3013.5,3012.4,0.40631178]
[1769564419823,4.70667542,3013.8,3012.4,0.40631178]
[1769564420031,3.4172397,3013.7,3012.4,0.40631178]
[1769564420222,3.4172397,3013.6,3012.4,0.40631178]
[1769564420418,3.4172397,3013.5,3012.4,0.40631178]
[1769564420621,4.70667542,3013.8,3012.4,0.40631178]
[1769564420826,3.41751925,3013.7,3012.4,0.40631178]
[1769564421026,3.41751925,3013.6,3012.4,0.40631178]
[1769564421227,3.41751925,3013.5,3012.4,0.40631178]
[1769564421427,4.70667542,3013.8,3012.4,0.40631178]
[1769564421628,3.41815408,3013.7,3012.4,0.40631178]
[1769564421826,3.41815408,3013.6,3012.4,0.40631178]
[1769564422029,3.41815408,3013.5,3012.4,0.40631178]
[1769564422231,4.70667542,3013.8,3012.4,0.40631178]
[1769564422433,3.41829261,3013.7,3012.4,0.40631178]
[1769564422732,3.41829261,3013.6,3012.4,0.40631178]
[1769564422930,3.41829261,3013.5,3012.4,0.40631178]
[1769564423134,4.70667542,3013.8,3012.4,0.40631178]
[1769564423330,3.41857574,3013.7,3012.4,0.40631178]
[1769564423532,3.41857574,3013.6,3012.4,0.40631178]
[1769564423727,3.41857574,3013.5,3012.4,0.40631178]
[1769564423932,4.70667542,3013.8,3012.4,0.40631178]
[1769564424132,3.41881243,3013.7,3012.4,0.40631178]
[1769564424337,3.41881243,3013.6,3012.4,0.40631178]
[1769564424633,4.70667542,3013.8,3012.4,0.40631178]
[1769564424828,3.41918017,3013.7,3012.4,0.40631178]
[1769564425029,3.41918017,3013.6,3012.4,0.40631178]
[1769564425231,4.70667542,3013.8,3012.4,0.40631178]
[1769564425529,3.41922852,3013.7,3012.4,0.40631178]
[1769564425729,3.41922852,3013.6,3012.4,0.40631178]
[1769564425932,4.70667542,3013.8,3012.4,0.40631178]
[1769564426233,3.41962692,3013.7,3012.4,0.40631178]
[1769564426433,3.41962692,3013.6,3012.4,0.40631178]
[1769564426632,4.70667542,3013.8,3012.4,0.40631178]
[1769564426833,3.41998227,3013.7,3012.4,0.40631178]
[1769564427034,3.41998227,3013.6,3012.4,0.40631178]
[1769564427337,4.70667542,3013.8,3012.4,0.40631178]
[1769564427536,3.42050984,3013.7,3012.4,0.40631178]
[1769564427739,4.70667542,3013.8,3012.4,0.40631178]
[1769564428034,3.42101339,3013.7,3012.4,0.40631178]
[1769564428226,2.05467542,3013.8,3012.4,0.40631178]
[1769564428431,3.42117814,3013.7,3012.4,0.40631178]
[1769564428736,4.00367542,3013.8,3012.4,0.40631178]
[1769564429036,3.42210294,3013.7,3012.4,0.40631178]
[1769564429338,3.42278028,3013.6,3012.4,0.40631178]
[1769564429539,4.00367542,3013.8,3012.4,0.40631178]
[1769564429738,3.42278028,3013.7,3012.4,0.40631178]
[1769564429936,3.42278028,3013.6,3012.4,0.40631178]
[1769564430131,4.00367542,3013.8,3012.4,0.40631178]
[1769564430333,3.42267695,3013.7,3012.7,0.41167125]
[1769564430637,1.949,3013.8,3012.7,0.41167125]
[1769564430837,1.88855542,3014.1,3012.7,0.41167125]
[1769564431042,5.37216063,3014.0,3012.7,0.41167125]
[1769564431241,1.949,3014.0,3012.7,0.41167125]
[1769564434236,1.88855542,3014.1,3012.7,0.41167125]
[1769564434436,3.42059652,3014.0,3012.7,0.41167125]
[1769564434742,1.88855542,3014.1,3012.7,0.41167125]
[1769564434937,3.4206038,3014.0,3012.7,0.41167125]
[1769564435142,1.88855542,3014.1,3012.7,0.41167125]
[1769564435336,3.42021721,3014.0,3012.7,0.41167125]
[1769564435539,1.88855542,3014.1,3012.7,0.41167125]
[1769564435741,3.420217,3014.0,3012.7,0.41167125]
[1769564435945,1.88855542,3014.1,3012.7,0.41167125]
[1769564436134,3.42021731,3014.0,3012.7,0.41167125]
[1769564436342,1.88855542,3014.1,3012.7,0.41167125]
[1769564436544,3.41970786,3014.0,3012.7,0.41167125]
[1769564436845,0.1661,3014.3,3013.0,0.41198269]
[1769564437047,3.41949193,3014.2,3013.0,0.41198269]
[1769564437246,3.41949193,3014.1,3013.0,0.41198269]
[1769564437546,0.1661,3014.3,3013.0,0.41198269]
[1769564437746,3.41894447,3014.2,3013.0,0.41198269]
[1769564437948,2.645,3014.4,3013.3,0.41198526]
[1769564439149,4.53355542,3014.4,3013.3,0.41198526]
[1769564441042,4.53355542,3014.4,3012.9,1.88855542]
[1769564441241,1.88855542,3014.1,3013.0,0.41274337]
[1769564441441,1.88855542,3014.1,3012.7,0.41274558]
[1769564441744,2.81109,3014.4,3012.7,0.41274558]
[1769564454349,3.40052345,3014.3,3012.7,0.41274558]
[1769564454557,3.40052345,3014.2,3012.7,0.41274558]
[1769564454749,2.81109,3014.4,3012.7,0.41274558]
[1769564454950,3.40051831,3014.3,3012.7,0.41274558]
[1769564455142,2.81109,3014.4,3012.7,0.41274558]
[1769564455346,3.40046012,3014.3,3012.7,0.41274558]
[1769564455652,2.81109,3014.4,3012.7,0.41274558]
[1769564455854,3.4006796,3014.3,3012.7,0.41274558]
[1769564456046,2.81109,3014.4,3012.7,0.41274558]
[1769564456247,3.40070957,3014.3,3012.7,0.41274558]
[1769564456452,2.81109,3014.4,3012.7,0.41274558]
[1769564456653,3.40115078,3014.3,3012.7,0.41274558]
[1769564456951,2.81109,3014.4,3012.7,0.41274558]
[1769564457251,3.40114834,3014.3,3012.7,0.41274558]
[1769564457453,3.40114834,3014.2,3012.7,0.41274558]
[1769564457651,2.81109,3014.4,3012.7,0.41274558]
[1769564457851,3.4018584,3014.3,3012.7,0.41274558]
[1769564458050,3.4018584,3014.2,3012.7,0.41274558]
[1769564458254,2.81109,3014.4,3012.7,0.41274558]
[1769564458547,3.40273926,3014.3,3012.7,0.41274558]
[1769564458752,3.40273926,3014.2,3012.7,0.41274558]
[1769564458952,2.81109,3014.4,3012.7,0.41274558]
[1769564459252,3.40273016,3014.3,3012.7,0.41274558]
[1769564459453,3.40273016,3014.2,3012.7,0.41274558]
[1769564459648,2.81109,3014.4,3012.7,0.41274558]
[1769564459851,3.40354962,3014.3,3012.7,0.41274558]
[1769564460154,3.40354962,3014.2,3012.7,0.41274558]
[1769564460354,3.40354962,3014.1,3012.7,0.41274558]
[1769564460557,2.81109,3014.4,3012.7,0.41274558]
[1769564460756,3.40452212,3014.3,3012.7,0.41274558]
[1769564461056,3.40452212,3014.2,3012.7,0.41274558]
[1769564461254,3.40452212,3014.1,3012.7,0.41274558]
[1769564461457,0.1661,3014.3,3012.7,0.41274558]
[1769564461658,3.40405219,3014.2,3012.7,0.41274558]
[1769564461858,3.40405219,3014.1,3012.7,0.41274558]
[1769564462057,0.1661,3014.3,3012.7,0.41274558]
[1769564462255,3.5700255,3014.2,3012.7,0.41274558]
[1769564462461,3.4039255,3014.1,3012.7,0.41274558]
[1769564464255,0.1661,3014.2,3012.7,0.41274558]
[1769564464456,0.1661,3014.2,3012.8,0.40930797]
[1769564466258,3.57179331,3014.1,3012.8,0.40930797]
[1769564466560,2.05443155,3013.9,3012.5,0.40992401]
[1769564470270,0.16612,3013.9,3012.5,0.40992401]
[1769564473470,2.107,3014.2,3012.5,0.40992401]
[1769564473770,3.39968373,3014.1,3012.5,0.40992401]
[1769564473966,2.107,3014.2,3012.5,0.40992401]
[1769564474171,3.39967985,3014.1,3012.5,0.40992401]
[1769564474468,2.107,3014.2,3012.5,0.40992401]
[1769564474767,3.39960659,3014.1,3012.5,0.40992401]
[1769564474966,2.107,3014.2,3012.5,0.40992401]
[1769564475163,3.39960622,3014.1,3012.5,0.40992401]
[1769564475366,2.107,3014.2,3012.5,0.40992401]
[1769564475575,3.39952289,3014.1,3012.5,0.40992401]
[1769564475769,2.107,3014.2,3012.5,0.40992401]
[1769564475971,3.39952626,3014.1,3012.5,0.40992401]
[1769564476169,2.107,3014.2,3012.5,0.40992401]
[1769564476370,3.39947222,3014.1,3012.5,0.40992401]
[1769564476572,2.107,3014.2,3012.5,0.40992401]
[1769564476768,3.39947336,3014.1,3012.5,0.40992401]
[1769564476972,2.107,3014.2,3012.5,0.40992401]
[1769564477272,3.39947305,3014.1,3012.5,0.40992401]
[1769564477472,2.107,3014.2,3012.5,0.40992401]
[1769564477674,3.39944457,3014.1,3012.5,0.40992401]
[1769564477870,3.39944457,3014.0,3012.5,0.40992401]
[1769564478072,2.107,3014.2,3012.5,0.40992401]
[1769564478272,3.41340651,3014.1,3012.5,0.40992401]
[1769564478475,2.107,3014.2,3012.5,0.40992401]
[1769564478674,3.41340188,3014.1,3012.5,0.40992401]